Cogmind - Beta 9.2 @@@ ROGUE MODE // 2019.12.13 @ 21:12:56 Player: Exeight Result: Destroyed by L-31 Rogue with Katana Performance ------------- Evolutions (1) 500 Regions Visited (2) 400 Robots Destroyed (38) 190 Value Destroyed (1162) 1162 Prototype IDs (2) 40 Alien Tech Used (0) 0 Bonus (0) 0 TOTAL SCORE: 2292 Bonus ------- None Cogmind --------- Core Integrity 0/400 Matter 208/300 Energy 275/275 System Corruption 0% Temperature Cool (0) Movement Core (750) Ox14 Location -9/Materials Parts ------- > --- POWER (1) -------- Deuterium Engine > --- PROPULSION (2) --- (None) > --- UTILITY (4) ------ High-capacity Storage Unit Hacking Suite Hacking Suite Hacking Suite > --- WEAPON (2) ------- Datajack Katana > --- INVENTORY (12) --- Deuterium Engine Aluminum Leg Heat Sink Hacking Suite Shock Rifle High-powered Shotgun High-powered Shotgun Peak State ------------ > --- POWER ------------ Deuterium Engine > --- PROPULSION ------- Aluminum Leg Aluminum Leg > --- UTILITY ---------- High-capacity Storage Unit Hacking Suite Hacking Suite Hacking Suite > --- WEAPON ----------- High-powered Shotgun High-powered Shotgun > --- INVENTORY -------- Deuterium Engine Deuterium Engine Deuterium Engine Aluminum Leg Aluminum Leg Aluminum Leg Heat Sink Heat Sink Hacking Suite Heavy Assault Rifle Heavy Assault Rifle [Rating: 23] Favorites ----------- Power Ion Engine Engine Ion Engine Propulsion Aluminum Leg Leg Aluminum Leg Hover Unit Hover Unit Flight Unit Flight Unit Utility Hacking Suite Device Heat Sink Storage Large Storage Unit Processor Signal Interpreter Hackware Hacking Suite Weapon Shock Rifle Energy Gun Shock Rifle Ballistic Gun High-powered Shotgun Launcher Grenade Launcher Slashing Weapon Katana Special Melee Weapon Datajack Build | -11 -10 -9 ------- Run | Scr Mat Mat Slots Evolved 2 | . . 2 Power . | . . . Propulsion . | . . . Utility 2 | . . 2 Weapon . | . . . Parts Attached 53 | 6 20 27 Power 5 | 1 1 3 Engine 5 | 1 1 3 Core . | . . . Reactor . | . . . Propulsion 15 | 2 7 6 Treads . | . . . Leg 11 | 2 5 4 Wheel . | . . . Hover 2 | . . 2 Flight 2 | . 2 . Utility 14 | 1 8 5 Device 1 | . . 1 Storage 9 | 1 7 1 Processor 1 | . 1 . Hackware 3 | . . 3 Protection . | . . . Artifact . | . . . Weapon 19 | 2 4 13 Energy Gun 8 | 2 . 6 Energy Cannon . | . . . Ballistic Gun 6 | . 2 4 Ballistic Cannon . | . . . Launcher 2 | . 2 . Special Weapon . | . . . Impact Weapon . | . . . Slashing Weapon 1 | . . 1 Piercing Weapon . | . . . Special Melee Weapon 2 | . . 2 Unidentified Prototypes . | . . . Parts Lost 18 | . 4 14 Power 2 | . . 2 Propulsion 8 | . 2 6 Utility . | . . . Weapon 8 | . 2 6 Highest Loss Streak 4 | . 3 4 Average Slot Usage (%) 96 | . 97 95 Engine 12 | . 14 10 Leg 23 | . 26 20 Device 2 | . . 3 Storage 18 | . 25 11 Processor 1 | . 1 1 Hackware 12 | . . 24 Energy Gun 10 | . 11 9 Ballistic Gun 10 | . 10 10 Launcher 3 | . 6 1 Naked Turns . | . . . Heaviest Build 64 | 13 57 64 Greatest Support 20 | 20 20 20 Greatest Overweight (x) 4 | 1 4 4 Average Overweight (x) 1 | . 1 2 Largest Inventory Capacity 18 | 6 18 18 Average Capacity 13 | 5 14 12 Most Carried 17 | 6 11 17 Average Carried 8 | 3 5 10 Final Capacity 12 | 6 12 12 Final Carried 10 | 1 10 7 Class Distribution -------------------- 56% | Mutant 43% | Hacker-Mutant Dominant Class ---------------- Mutant | -10/Materials Hacker-Mutant | -9/Materials Resources | -11 -10 -9 ----------- Run | Scr Mat Mat Matter Collected 764 | 179 275 310 Remotely . | . . . Salvage Created 1305 | . 396 909 Parts 75 | . 23 52 Haulers Intercepted . | . . . Recyclers Shooed 2 | . 1 1 Parts Field Recycled . | . . . Retrieved Matter . | . . . Parts Self-Destructed . | . . . Prevented . | . . . Kills | -11 -10 -9 ------- Run | Scr Mat Mat Combat Hostiles Destroyed 35 | . 13 22 Melee 2 | . . 2 Guns 25 | . 6 19 AOE 7 | . 7 . Classes Destroyed 7 | . 2 5 Builder 1 | . . 1 Recycler 1 | . . 1 Watcher 1 | . . 1 Swarmer 9 | . 3 6 Grunt 18 | . 10 8 Duelist 2 | . . 2 Sentry 6 | . . 6 Best Kill Streak 4 | . 4 3 Combat Bots Only 4 | . 4 3 Max Kills in Single Turn 3 | . 3 2 Gunslinging 1 | . . 1 Exploded 3 | . 3 . Melee 1 | . . 1 Uniques/NPCs Destroyed . | . . . Combat | -11 -10 -9 -------- Run | Scr Mat Mat Damage Taken 2222 | . 683 1539 Core 545 | . 136 409 Absorbed by Shields . | . . . Core Remaining (%) 72 | 100 45 . Volleys Fired 102 | . 41 61 Largest 2 | . 2 2 Hottest 100 | . 100 100 Shots Fired 177 | . 66 111 Gun 170 | . 60 110 Cannon . | . . . Launcher 7 | . 6 1 Special . | . . . Kinetic 72 | . 19 53 Thermal 41 | . 41 . Explosive 7 | . 6 1 Electromagnetic 57 | . . 57 Robot Hit Streak 15 | . 6 15 Robot Miss Streak 11 | . 2 11 Penetration Max . | . . . Secondary Targets 3 | . 1 2 Max Gunslinging Chain 1 | . 1 1 Shots Hit Robots 124 | . 37 87 Core Hits 58 | . 23 35 Critical Hits . | . . . Critical Kills . | . . . Critical Parts Destroyed . | . . . Melee Attacks 8 | . . 8 Impact . | . . . Slashing 6 | . . 6 Piercing . | . . . Sneak Attacks 1 | . . 1 Combat Hostiles . | . . . Follow-up Attacks . | . . . Damage Inflicted 2169 | . 699 1470 Guns 1601 | . 329 1272 Cannons . | . . . Explosions 407 | . 370 37 Melee 155 | . . 155 Ramming 6 | . . 6 Kinetic 741 | . 95 646 Thermal 271 | . 234 37 Explosive 370 | . 370 . Electromagnetic 626 | . . 626 Impact . | . . . Slashing 155 | . . 155 Piercing . | . . . Highest Corruption . | . . . Average Corruption . | . . . Corruption Purged . | . . . Overload Shots . | . . . Overflow Damage 2 | . 2 . Projectiles . | . . . Explosions 2 | . 2 . Melee . | . . . Knockbacks . | . . . Impact . | . . . Kinetic . | . . . Secondary . | . . . Self-Inflicted Damage 67 | . 21 46 Shots 3 | . 1 2 Rammed 2 | . 1 1 Targets Rammed 2 | . 1 1 Kicked . | . . . Crushed . | . . . Highest Temperature 508 | . 508 234 Average Temperature 98 | . 151 41 Received Heat Transfer 615 | . 288 327 Effects 4 | . 4 . Shutdowns 2 | . 2 . Energy Bleed 1 | . 1 . Matter Decay 1 | . 1 . Siege Activations . | . . . Robots Corrupted 1 | . . 1 Combat Hostiles 1 | . . 1 Parts Fried 6 | . . 6 Impact Corruptions . | . . . Robots Melted . | . . . Combat Hostiles . | . . . Parts Melted 1 | . 1 . Heat Transferred 753 | . 703 50 Parts Sabotaged . | . . . Parts Stolen . | . . . Parts Stripped . | . . . Power Chain Reactions 1 | . . 1 Missiles Intercepted . | . . . Alert | -11 -10 -9 ------- Run | Scr Mat Mat Peak Influence 244 | . 160 244 Average Influence 81 | . 64 99 Maximum Alert Level 1 | . . 1 Low Security (%) 99 | 100 100 99 Level 1 . | . . . Level 2 . | . . . Level 3 . | . . . Level 4 . | . . . Level 5 . | . . . High Security . | . . . Max Security . | . . . Squads Dispatched 4 | . 3 1 Investigation 1 | . . 1 Extermination . | . . . Reinforcement 3 | . 3 . Assault . | . . . Garrison . | . . . Intercept . | . . . Construction Impeded . | . . . Haulers Reinforced . | . . . Stealth | -11 -10 -9 --------- Run | Scr Mat Mat Distress Signals 2 | . . 2 Communications Jammed . | . . . Distress Signals . | . . . Times Spotted 62 | . 25 37 Peak Tracking Total 6 | . 4 6 Tactical Retreats 3 | . . 3 Traps | -11 -10 -9 ------- Run | Scr Mat Mat Traps Triggered 1 | . 1 . Indirectly . | . . . Trap Hack Attempts . | . . . Triggered . | . . . Disarmed . | . . . Reprogrammed 4 | . . 4 Reused . | . . . Traps Extracted . | . . . Installed . | . . . Triggered . | . . . Machines | -11 -10 -9 ---------- Run | Scr Mat Mat Machines Disabled 3 | . . 3 Max in Single Turn 2 | . . 2 Machines Sabotaged . | . . . Garrisons Compromised . | . . . Overloaded Fab Kills . | . . . Fab Network Shutdowns . | . . . Hacking | -11 -10 -9 --------- Run | Scr Mat Mat Machines Accessed 8 | . 2 6 Terminals 6 | . 2 4 Fabricators . | . . . Repair Stations 1 | . . 1 Recycling Units 1 | . . 1 Scanalyzers . | . . . Garrison Access . | . . . Total Hacks 23 | . 2 21 Successful 18 | . 1 17 Failed 5 | . 1 4 Catastrophic . | . . . Database Lockouts . | . . . Manual 1 | . . 1 Terminals 16 | . 2 14 Fabricators . | . . . Repair Stations 4 | . . 4 Recycling Units 3 | . . 3 Scanalyzers . | . . . Garrison Access . | . . . Terminal Hacks 12 | . 1 11 Prototype ID Bank 1 | . . 1 Branch Access Points 1 | . . 1 Emergency Access Points 2 | . . 2 Reprogram Traps 1 | . . 1 Dispatch Records 2 | . . 2 Transport Status 1 | . . 1 Recall Reinforcements 1 | . . 1 Hauler Manifests 3 | . 1 2 Fabricator Hacks . | . . . Repair Station Hacks 3 | . . 3 Scan Component 2 | . . 2 Repair 1 | . . 1 Recycling Unit Hacks 3 | . . 3 Report Inventory 1 | . . 1 Retrieve Matter 1 | . . 1 Retrieve Components 1 | . . 1 Scanalyzer . | . . . Garrison Access Hacks . | . . . Unauthorized Hacks . | . . . Terminals . | . . . Fabricators . | . . . Repair Stations . | . . . Recycling Units . | . . . Scanalyzers . | . . . Garrison Access . | . . . Data Cores Recovered . | . . . Used . | . . . Hacking Detections 6 | . 1 5 Full Trace Events 1 | . . 1 Feedback Events . | . . . Feedback Blocked . | . . . Robot Schematics Acquired . | . . . Robots Built . | . . . Matter . | . . . Time . | . . . Total Robot Build Rating . | . . . Part Schematics Acquired . | . . . Parts Built . | . . . Matter . | . . . Time . | . . . Total Part Build Rating . | . . . Parts Repaired 1 | . . 1 Time 26 | . . 26 Parts Recycled . | . . . Recycled Matter . | . . . Retrieved Matter 171 | . . 171 Retrieved Components 9 | . . 9 Parts Scanalyzed . | . . . Part Schematics Acquired . | . . . Parts Damaged . | . . . Bothacking | -11 -10 -9 ------------ Run | Scr Mat Mat Used RIF Installer . | . . . Robots Hacked 2 | . . 2 Non-combat 1 | . . 1 Combat 1 | . . 1 Robot Hacks Applied 2 | . . 2 parse_system 2 | . . 2 Relay Couplers Released . | . . . Robots Rewired . | . . . Allies Hacked . | . . . Hacks Repelled . | . . . Allies | -11 -10 -9 -------- Run | Scr Mat Mat Total Allies . | . . . Largest Group . | . . . Highest-Rated Group . | . . . Highest-Rated Ally . | . . . Total Orders . | . . . Ally Attacks . | . . . Total Damage . | . . . Kills . | . . . Allies Corrupted . | . . . Allies Melted . | . . . Intel | -11 -10 -9 ------- Run | Scr Mat Mat Robot Analysis Total . | . . . Derelict Logs Recovered . | . . . Drone Launches . | . . . Drone Recoveries . | . . . Exploration | -11 -10 -9 ------------- Run | Scr Mat Mat Turns Passed 2820 | 44 1318 1458 Spaces Moved 1306 | 40 661 605 Core 38 | 37 1 . Treads . | . . . Legs 1257 | 3 660 594 Wheels . | . . . Hover 11 | . . 11 Flight . | . . . Fastest Speed 50 | 50 120 180 Average Speed 175 | 81 174 183 Slowest Speed 240 | 120 240 240 Overloaded Moves . | . . . Propulsion Burnouts . | . . . Robots Hopped . | . . . Cave-ins Triggered . | . . . Exploration Rate (%) 43 | 3 81 47 Regions Visited 2 Branch Regions . Pre-discovered Areas . | . . . Known Exits Taken 1 | . 1 . Unknown Exits Taken 1 | 1 . . Scrap Searched . | . . . Spaces Dug . | . . . Terrain Destroyed 48 | . 43 5 Melee . | . . . Projectile . | . . . AOE 48 | . 43 5 Actions | -11 -10 -9 --------- Run | Scr Mat Mat Total 1649 | 51 762 836 Wait 96 | . 8 88 Move 1304 | 39 660 605 Hop . | . . . Pick Up 55 | 6 21 28 Fast Attach 4 | 1 1 2 Attach 34 | 5 11 18 Detach 1 | . 1 . Swap 15 | . 8 7 Drop 28 | . 10 18 Fire 102 | . 41 61 Melee 8 | . . 8 Ram . | . . . Kick 2 | . 1 1 Crush . | . . . Escape Stasis . | . . . Rewire . | . . . Trap . | . . . Miscellaneous . | . . . Route ------- -11/Scrapyard -10/Materials (discovered 4 exits: *Mat x3 / [*Min]) -9/Materials (discovered 4 exits: *Min x2 / *Sto x2) History --------- Turn | Location | Event 3 | -11/Scrapyard | Discovered new exit (range 15) 45 | -11/Scrapyard | Entered Materials 312 | -10/Materials | Build established: Mutant 551 | -10/Materials | Discovered new exit (range 8) 601 | -10/Materials | Lost 3 parts (1n2w) 866 | -10/Materials | Discovered new exit (range 7) 1002 | -10/Materials | Core integrity fell below 50% 1020 | -10/Materials | Discovered new exit (range 16) 1161 | -10/Materials | Discovered new exit (range 9) 1359 | -10/Materials | Identified exit to Materials 1363 | -10/Materials | Entered another Materials area 1363 | -9/Materials | Evolved 2 slots: Utility x2 1408 | -9/Materials | Discovered new exit (range 11) 1607 | -9/Materials | Repaired Aluminum Leg 1875 | -9/Materials | Build established: Hacker-Mutant 2181 | -9/Materials | Identified exit to Mines 2181 | -9/Materials | Identified exit to Storage 2554 | -9/Materials | Core integrity fell below 50% 2596 | -9/Materials | Lost 3 parts (1n2w) 2774 | -9/Materials | Lost 4 parts (1p2n1w) 2808 | -9/Materials | Core integrity fell below 20% 2821 | -9/Materials | Destroyed by L-31 Rogue with Katana Last Messages --------------- R-06 Scavenger collects Visual Processing Unit. Acquired 48 matter. R-06 Scavenger collects Signal Interpreter. R-06 Scavenger collects Lgt. Treads. Acquired Katana. R-06 Scavenger collects Heat Sink. K-01 Serf collects debris. Acquired Hover Unit. K-01 Serf collects debris. Acquired Hover Unit. K-01 Serf collects debris. Jacked L-31 Rogue... >>parse_system Reading system data... U-05 Engineer lays Concrete. L-31 Rogue destroyed. G-34 Mercenary destroyed. C-30 ARC bursts open, deploying its payload. L-31 Rogue unfolds itself. Hover Unit destroyed. Map ----- +----------------------------------------------------+ | ?????????????????????????????????????????????????? | | ?????????????????????????????????????????????????? | | ?????????????????????????????????????????????????? | | ?????????????????????????????????????????????????? | | ?????????????????????????????????????????????????? | | ?????????????????????????????????????????????????? | | ?????????????????????????????????????????????????? | | ?????????????????????????????????????????????????? | | ?????????????????????????????????????????????????? | | ?????????????????????????????????????????????????? | | ?????????????????????????????????????????????????? | | ????????????????????+????????????????????????????? | | ???????????????????# ????????????????????????????? | | ???????????????????# #???????????????????????????? | | ???????????????????# #???????????????????????????? | | ???????????????????# #???????????????????????????? | | ???????????????????# ###?????????????????????????? | | ???????????????????# #######???????????????????? | | ???????????????????# / ???????????????????? | | ???????????????????+ ## ???????????????????? | | ?????# ???????????# ## """ ??????????????????? | | ?????# ????????## ## """"" ?????????????????? | | ?????# ####### # """"" ?????????????????? | | ?????# %#%""""" #???????????????? | | ?????# %gl """ #???????????????? | | ??? #@ #???????????????? | | ??????##?#/######## # #???????????????? | | ??????# ??? #??## ###########???????????????? | | ??????/ """ = #???# # """ #?????????????????? | | ??????# """ #???# % + T """ #?????????????????? | | ??????# """ ##??# # """ #?????????????????? | | ??????# """ #??# # #?????????????????? | | ??????#[ """ #???# # #?????????????????? | | ??????# #???# #########?????????????????? | | ??????# ????# %*#????#########????????????? | | ???????? ??????#= #????#""!"!""#????????????? | | ?????????#+#??????## ##???# "!"!" #????????????? | | ????????## ######## ##### ##### ""???? | | ????????# ""???? | | ????????# =*% T > ""???? | | ????????#!%[= ?? | | ????????##+######## ##### ##### ?? | | ????????#! #####+###################??# ??? | | ????????# "" ## ## #???????? | | ????????# "" ## ## ##??????? | | ????????# """ ## ## +??????? | | ????????# ## ## #######+## | | ????????# """ ## ## # # | | ????????#%""" ## ## % # # | | ???#????#*""" ## #??########+### """# | +----------------------------------------------------+ Best States ------------- Heat Dissipation 38 Energy Generation 14 Energy Capacity 275 Matter Stores 300 Matter Capacity 500 Sight Range 16 Terrain Scan Density 10 Evasion (%) 50 Offensive Hacking 30 Item Schematics ----------------- None Robot Schematics ------------------ None Fabricated ------------ Nothing Alien Tech Used ----------------- None Achievements -------------- None Challenges ------------ None Game ------ Seed DirtyShadingFirepult Manual? 0 Play Time 00:33:06 Cumulative 7.7 hours Start 2019.12.13 @ 20:38:26 End 2019.12.13 @ 21:12:56 Sessions 1 Manual Loads 0 Difficulty Rogue Special Mode None Game No. 12 Rogue 12 Adventurer 0 Explorer 0 Win Type - Total 0 Types 0/0/0/0/0/0/0 Lore% 7 Gallery% 12 Achievement% 10 Wizard Run 0 Options --------- ASCII 0 Keyboard 0 Movement Mouse Keybinds 0 Fullscreen 0 Font 32/SmallcapsGlow Map View 76x50 Tactical HUD 0 Map Filters NONE Filters NONE Steam 1 RUN: f3a22821-4f14-4d1f-8685-a24c6dcfeb4b